fUSD/lending_fUSD_20251224
["ID","MTS","AMOUNT","RATE_DAILY","PERIOD"]
[399636813,1766578242217,-300.0,0.00016999,2]
[399636814,1766578242228,-307.86580758,0.00016999,2]
[399636815,1766578242238,-300.0,0.00016999,2]
[399636816,1766578242248,-300.0,0.00016999,2]
[399636817,1766578242258,-762922.84453739,0.00017,2]
[399636818,1766578242275,-166059.19804742,0.00017,2]
[399636819,1766578242426,-276.946368,0.00016998,2]
[399636820,1766578242436,-2515.3435026,0.00017,2]
[399636825,1766578243054,-899.99,0.00017,2]
[399636826,1766578243213,-2045.39356299,0.00017,2]
[399636827,1766578243225,-834.90360017,0.00017,2]
[399636828,1766578243237,-1218.10437464,0.00017,2]
[399636829,1766578243340,-2284.89057732,0.00017,2]
[399636830,1766578243352,-531.774,0.00017,2]
[399636898,1766578246313,-465.4164627,0.000169,2]
[399636899,1766578246324,-87.88060193,0.00017,2]
[399636900,1766578246336,-1159.3,0.00017,2]
[399636901,1766578246348,-1000.0,0.00017,2]
[399636906,1766578381869,540.2801,0.00032877,120]
[399636908,1766578703385,-200.0,0.00014635,2]
[399636909,1766578703409,-37.00163666,0.00014678,2]
[399636910,1766578705248,-259.69356779,0.00014678,2]
[399636911,1766578718222,-547.65321864,0.00014549,2]
[399636912,1766578808409,-267.35514473,0.00014549,2]
[399636913,1766578826463,986.89,0.00014292,2]
[399636916,1766578906674,185.99,0.00031507,120]
[399636917,1766578939479,500.0,0.00014364,2]
[399636918,1766579007860,-166.66,0.00014543,2]
[399636919,1766579007884,-2.64485527,0.00014549,2]
[399636920,1766579007906,-43.88678136,0.00014549,2]
[399636921,1766579007929,-134.02629239,0.00014614,2]
[399636922,1766579092250,8513.12,0.00014121,2]
[399636923,1766579092274,10000.01,0.00014121,2]
[399636924,1766579092297,74.03,0.00014121,2]
[399636925,1766579120260,3192.37781711,9e-05,2]
[399636926,1766579153087,6733.60218289,0.0001299,2]
[399636927,1766579153112,10000.01,0.0001299,2]
[399636928,1766579153135,10000.01,0.0001299,2]
[399636929,1766579153159,10000.01,0.0001299,2]
[399636930,1766579153187,10000.01,0.0001299,2]
[399636931,1766579153210,10000.01,0.0001299,2]
[399636932,1766579153235,10000.01,0.0001299,2]
[399636933,1766579153259,10000.01,0.0001299,2]
[399636934,1766579153285,8665.00302479,0.0001299,2]
[399636935,1766579160504,10329.13099116,8e-05,2]
[399636936,1766579197101,-459.31524973,0.00014685,2]
[399636937,1766579230714,205.0,9.8e-05,2]
[399636939,1766579265650,2509.09961018,0.00013,2]
[399636940,1766579270495,1368.12742309,0.00012,2]
[399636941,1766579274482,10000.0,0.00032877,120]
[399636942,1766579288997,-235.57626546,0.0001439,2]
[399636943,1766579293406,-379.39925078,0.0001439,2]
[399636944,1766579296072,-215.97542752,0.0001439,2]
[399636945,1766579297026,1925.97390625,0.0001,2]
[399636946,1766579298801,-387.34581138,0.0001439,2]
[399636947,1766579298877,390.37563915,7.888e-05,2]
[399636948,1766579301555,-782.80187857,0.0001439,2]
[399636949,1766579303008,-252.51769995,0.0001439,2]
[399636950,1766579305068,-263.73682462,0.0001439,2]
[399636951,1766579306709,-501.93541913,0.0001439,2]
[399636952,1766579309355,-601.12853659,0.0001439,2]
[399636953,1766579312439,-267.90004059,0.0001439,2]
[399636955,1766579316006,-157.10837628,0.0001439,2]
[399636956,1766579318233,1421.25020283,0.0001,2]
[399636957,1766579318381,-393.16426371,0.0001439,2]
[399636958,1766579319886,5202.01118842,0.0002,120]
[399636959,1766579320370,-269.69195794,0.0001439,2]
[399636960,1766579322289,-296.40985861,0.0001439,2]
[399636961,1766579326939,-442.46819843,0.0001439,2]
[399636962,1766579329503,-241.67969156,0.0001439,2]
[399636963,1766579332290,-320.43004117,0.0001439,2]
[399636964,1766579335070,-168.88416526,0.0001439,2]
[399636965,1766579338154,-155.77863173,0.0001439,2]
[399636966,1766579338200,1500.0,0.00014015,2]
[399636967,1766579340408,-275.93767581,0.0001439,2]
[399636968,1766579342466,-259.94754023,0.0001439,2]
[399636969,1766579344957,-341.99827021,0.0001439,2]
[399636970,1766579350240,-266.40013121,0.0001439,2]
[399636971,1766579352702,-281.81780859,0.0001439,2]
[399636972,1766579354737,-269.29239753,0.0001439,2]
[399636973,1766579360651,-163.96901314,0.0001439,2]
[399636974,1766579367622,-185.34531192,0.0001439,2]
[399636975,1766579369348,-232.351131,0.0001439,2]
[399636976,1766579372649,-272.2805468,0.0001439,2]
[399636977,1766579374524,-215.14989761,0.0001439,2]
[399636978,1766579376149,-478.90673007,0.0001439,2]
[399636979,1766579378359,-176.67626731,0.0001439,2]
[399636980,1766579380425,-160.79287812,0.0001439,2]
[399636981,1766579383681,-242.26357046,0.0001439,2]
[399636982,1766579408485,-124.54739326,0.0001439,2]
[399636983,1766579408509,-122.75630209,0.0001439,2]
[399636991,1766579431995,-146.24369791,0.0001439,2]
[399636992,1766579432007,-140.68475027,0.00014685,2]
[399636993,1766579432017,-500.0,0.00014798,5]
[399636994,1766579432027,-150.0,0.00014798,5]
[399636995,1766579432038,-513.0,0.00014798,5]
[399636996,1766579432048,-500.0,0.00014825,5]
[399636997,1766579432058,-150.0,0.00014825,5]
[399636998,1766579432069,-513.0,0.00014825,5]
[399636999,1766579432079,-300.0,0.00014852,2]
[399637000,1766579432103,-1200.0,0.00014852,2]
[399637001,1766579432115,-438.62652423,0.00014853,5]
[399637002,1766579432125,-150.0,0.00014853,5]
[399637003,1766579432135,-513.0,0.00014853,5]
[399637004,1766579432147,-16820.9315507,0.00014873,2]
[399637005,1766579432156,-156.07144864,0.0001488,5]
[399637006,1766579432167,-513.0,0.0001488,5]
[399637007,1766579432176,-98459.49339523,0.00014882,2]
[399637008,1766579432190,-87201.11204697,0.00014882,2]
[399637009,1766579432212,-1159.80568213,0.00014882,2]
[399637047,1766579438224,-257.51726449,0.00014881,2]
[399637048,1766579438234,-235.08257671,0.00014881,2]
[399637049,1766579438251,-264.91742329,0.00014881,2]
[399637050,1766579438261,-312.86521442,0.00014881,2]
[399637051,1766579438271,-362.22313162,0.00014881,2]
[399637052,1766579438281,-38964.78061427,0.00014882,2]
[399637053,1766579438291,-226.62941462,0.000149,2]
[399637054,1766579438301,-513.0,0.00014908,5]
[399637055,1766579438311,-1200.0,0.00014924,2]
[399637056,1766579438322,-513.0,0.00014935,5]
[399637057,1766579438332,-794.10692972,0.00014962,2]
[399637058,1766579438342,-1108.64,0.00014962,2]
[399637059,1766579438352,-1108.64,0.00014962,2]
[399637060,1766579438362,-1108.64,0.00014962,2]
[399637061,1766579438371,-1108.64,0.00014962,2]
[399637062,1766579438381,-1108.64,0.00014962,2]
[399637063,1766579438391,-513.0,0.00014962,5]
[399637065,1766579438401,-151.0,0.00014969,2]
[399637067,1766579438411,-150.0,0.0001497,2]
[399637069,1766579438422,-236.31654756,0.00014971,2]
[399637071,1766579438432,-263.68345244,0.00014971,2]
[399637073,1766579438441,-478.90673007,0.00014971,2]
[399637075,1766579438451,-1000000.0,0.00014972,2]
[399637077,1766579438461,-267.3552,0.00014973,2]
[399637079,1766579438471,-1783.7831,0.00014973,2]
[399637081,1766579438480,-13357.38,0.00014973,2]
[399637082,1766579438489,-1452.1,0.00014979,2]
[399637085,1766579438499,-183.993,0.00014979,2]
[399637087,1766579438508,-9999.99,0.00014979,2]
[399637088,1766579438519,-9999.99,0.00014979,2]
[399637091,1766579438529,-278.93034552,0.0001498,2]
[399637093,1766579438539,-197.89081002,0.0001498,2]
[399637095,1766579438548,-9633.98,0.0001498,2]
[399637097,1766579438558,-851.22588338,0.0001498,2]
[399637099,1766579438568,-1206.07,0.00014981,2]
[399637101,1766579438578,-2880.57,0.00014981,2]
[399637102,1766579438588,-9999.99,0.00014981,2]
[399637104,1766579438598,-999.99,0.00014981,2]
[399637106,1766579438608,-150.99,0.00014981,2]
[399637109,1766579438619,-513.0,0.0001499,5]
[399637110,1766579438628,-5014.92,0.00014999,2]
[399637112,1766579438639,-2041.47960317,0.00015,2]
[399637114,1766579438649,-7947.26999932,0.00015,2]
[399637116,1766579438659,-21363.10346556,0.00015,2]
[399637118,1766579438669,-1155.1798605,0.00015,2]
[399637120,1766579438680,-33595.71545948,0.00015,2]
[399637122,1766579438689,-513.0,0.00015017,5]
[399637124,1766579438699,-166.66,0.00015023,2]
[399637126,1766579438709,-513.0,0.00015045,5]
[399637128,1766579438719,-513.0,0.00015072,5]
[399637130,1766579438729,-1120.29316525,0.00015072,5]
[399637132,1766579438739,-500.0,0.00015072,2]
[399637134,1766579438749,-500.0,0.00015072,2]
[399637136,1766579438759,-500.0,0.00015072,2]
[399637138,1766579438769,-500.0,0.00015072,2]
[399637140,1766579438779,-500.0,0.00015072,2]
[399637142,1766579438789,-500.0,0.00015072,2]
[399637144,1766579438798,-500.0,0.00015072,2]
[399637146,1766579438808,-500.0,0.00015072,2]
[399637149,1766579438819,-500.0,0.00015072,2]
[399637150,1766579438828,-516.01929042,0.00015072,2]
[399637152,1766579438838,-500.0,0.00015072,2]
[399637154,1766579438848,-500.0,0.00015072,2]
[399637156,1766579438858,-500.0,0.00015072,2]
[399637158,1766579438868,-500.0,0.00015072,2]
[399637160,1766579438878,-500.0,0.00015072,2]
[399637162,1766579438888,-500.0,0.00015072,2]
[399637165,1766579438898,-500.0,0.00015072,2]
[399637167,1766579438909,-500.0,0.00015072,2]
[399637169,1766579438919,-500.0,0.00015072,2]
[399637171,1766579438929,-500.0,0.00015072,2]
[399637173,1766579438939,-500.0,0.00015072,2]
[399637174,1766579438948,-521.52385313,0.00015072,2]
[399637177,1766579438959,-500.0,0.00015072,2]
[399637178,1766579438969,-500.0,0.00015072,2]
[399637181,1766579438980,-500.0,0.00015072,2]
[399637182,1766579438989,-500.0,0.00015072,2]
[399637184,1766579439000,-500.0,0.00015072,2]
[399637186,1766579439010,-500.0,0.00015072,2]
[399637188,1766579439020,-452.87068526,0.00015072,2]
[399637191,1766579439031,-582.59898014,0.00015072,2]
[399637192,1766579439042,-500.0,0.00015072,2]
[399637195,1766579439054,-500.0,0.00015072,2]
[399637197,1766579439064,-500.0,0.00015072,2]
[399637199,1766579439075,-294.2331637,0.00015072,2]
[399637201,1766579439085,-500.0,0.00015072,2]
[399637202,1766579439096,-500.0,0.00015072,2]
[399637204,1766579439106,-500.0,0.00015072,2]
[399637206,1766579439116,-500.0,0.00015072,2]
[399637208,1766579439126,-500.0,0.00015072,2]
[399637210,1766579439136,-500.0,0.00015072,2]
[399637212,1766579439147,-500.0,0.00015072,2]
[399637214,1766579439157,-500.0,0.00015072,2]
[399637216,1766579439167,-512.7999143,0.00015072,2]
[399637218,1766579439177,-500.0,0.00015072,2]
[399637220,1766579439187,-500.0,0.00015072,2]
[399637222,1766579439198,-500.0,0.00015072,2]
[399637224,1766579439209,-500.0,0.00015072,2]
[399637226,1766579439219,-150.0,0.00015072,2]
[399637228,1766579439229,-1244.21357413,0.00015072,5]
[399637230,1766579439240,-200.0,0.0001508,2]
[399637232,1766579439253,-16820.93155061,0.00015098,2]
[399637234,1766579439262,-513.0,0.00015099,5]
[399637236,1766579439272,-254.79,0.00015112,2]
[399637237,1766579439283,-299.39,0.00015112,2]
[399637239,1766579439294,-513.0,0.00015127,5]
[399637241,1766579439303,-513.0,0.00015154,5]
[399637243,1766579439314,-161.57308931,0.00015173,2]
[399637245,1766579439326,-500.0,0.00015173,2]
[399637247,1766579439335,-172.85820104,0.00015173,2]
[399637249,1766579439346,-163.19223575,0.00015173,2]
[399637251,1766579439355,-174.83400543,0.00015173,2]
[399637253,1766579439365,-550.49299637,0.00015173,2]
[399637255,1766579439374,-224.16527175,0.00015173,2]
[399637257,1766579439384,-500.0,0.00015173,2]
[399637259,1766579439394,-169.37257746,0.00015173,2]
[399637261,1766579439405,-500.08479975,0.00015173,2]
[399637263,1766579439414,-562.564449,0.00015173,2]
[399637265,1766579439424,-500.0,0.00015173,2]
[399637267,1766579439433,-500.37919946,0.00015173,2]
[399637269,1766579439443,-500.0,0.00015173,2]
[399637271,1766579439452,-500.0,0.00015173,2]
[399637273,1766579439462,-176.76151573,0.00015173,2]
[399637275,1766579439472,-500.0,0.00015173,2]
[399637277,1766579439482,-500.0,0.00015173,2]
[399637279,1766579439492,-500.0,0.00015173,2]
[399637281,1766579439502,-500.0,0.00015173,2]
[399637283,1766579439512,-500.0,0.00015173,2]
[399637285,1766579439526,-500.0,0.00015173,2]
[399637287,1766579439536,-500.0,0.00015173,2]
[399637289,1766579439546,-500.0,0.00015173,2]
[399637291,1766579439555,-167.20691349,0.00015173,2]
[399637293,1766579439565,-500.0,0.00015173,2]
[399637295,1766579439574,-453.84632834,0.00015173,2]
[399637297,1766579439584,-500.0,0.00015173,2]
[399637299,1766579439593,-500.0,0.00015173,2]
[399637301,1766579439603,-500.0,0.00015173,2]
[399637303,1766579439613,-500.0,0.00015173,2]
[399637305,1766579439622,-162.2863667,0.00015173,2]
[399637307,1766579439631,-500.0,0.00015173,2]
[399637309,1766579439641,-500.0,0.00015173,2]
[399637311,1766579439651,-276.60479743,0.00015173,2]
[399637313,1766579439661,-500.0,0.00015173,2]
[399637315,1766579439671,-500.0,0.00015173,2]
[399637317,1766579439680,-500.0,0.00015173,2]
[399637319,1766579439690,-500.0,0.00015173,2]
[399637321,1766579439700,-500.0,0.00015173,2]
[399637323,1766579439708,-500.0,0.00015173,2]
[399637325,1766579439718,-516.09973549,0.00015173,2]
[399637327,1766579439728,-500.0,0.00015173,2]
[399637329,1766579439737,-2267.36,0.00015173,2]
[399637331,1766579439748,-513.0,0.00015182,5]
[399637333,1766579439757,-513.0,0.00015209,5]
[399637335,1766579439767,-513.0,0.00015236,5]
[399637337,1766579439777,-500.0,0.00015254,2]
[399637339,1766579439787,-851.22588331,0.00015254,2]
[399637341,1766579439796,-513.0,0.00015264,5]
[399637343,1766579439806,-150.0,0.00015288,2]
[399637345,1766579439816,-150.0,0.00015288,2]
[399637347,1766579439826,-150.0,0.00015288,2]
[399637348,1766579439835,-152.81357025,0.00015288,2]
[399637349,1766579439845,-150.0,0.00015288,2]
[399637351,1766579439855,-150.0,0.00015288,2]
[399637352,1766579439865,-150.0,0.00015288,2]
[399637354,1766579439875,-150.0,0.00015288,2]
[399637356,1766579439884,-152.31137415,0.00015288,2]
[399637359,1766579439894,-150.0,0.00015288,2]
[399637361,1766579439904,-150.00000001,0.00015288,2]
[399637362,1766579439914,-150.0,0.00015288,2]
[399637363,1766579439924,-150.0,0.00015288,2]
[399637364,1766579439933,-150.0,0.00015288,2]
[399637365,1766579439943,-513.0,0.00015291,5]
[399637366,1766579439954,-1517.64,0.000153,2]
[399637367,1766579439964,-513.0,0.00015319,5]
[399637368,1766579439974,-16820.93155061,0.00015323,2]
[399637369,1766579439984,-513.0,0.00015346,5]
[399637370,1766579439994,-396.73,0.00015347,2]
[399637372,1766579440004,-268.86752652,0.00015363,2]
[399637374,1766579440014,-20250.6817,0.00015366,2]
[399637376,1766579440024,-1000.0,0.00015366,2]
[399637378,1766579440034,-513.0,0.00015373,5]
[399637380,1766579440044,-322.6107,0.00015395,2]
[399637384,1766579440054,-197.26302206,0.00015395,2]
[399637387,1766579440063,-500.0,0.00015395,2]
[399637390,1766579440074,-500.0,0.00015395,2]
[399637392,1766579440084,-250.0,0.00015395,2]
[399637394,1766579440093,-500.0,0.00015395,2]
[399637396,1766579440103,-250.0,0.00015395,2]
[399637398,1766579440113,-500.0,0.00015395,2]
[399637400,1766579440123,-250.0,0.00015395,2]
[399637402,1766579440133,-500.0,0.00015395,2]
[399637405,1766579440143,-250.0,0.00015395,2]
[399637406,1766579440153,-500.0,0.00015395,2]
[399637409,1766579440164,-500.0,0.00015395,2]
[399637411,1766579440174,-250.0,0.00015395,2]
[399637413,1766579440184,-500.0,0.00015395,2]
[399637415,1766579440193,-500.0,0.00015395,2]
[399637417,1766579440204,-500.0,0.00015395,2]
[399637419,1766579440214,-500.0,0.00015395,2]
[399637421,1766579440224,-714.61817831,0.00015395,2]
[399637423,1766579440233,-578.20924308,0.00015395,2]
[399637425,1766579440243,-151.0,0.00015395,2]
[399637427,1766579440257,-500.0,0.00015395,2]
[399637429,1766579440267,-156.587,0.00015395,2]
[399637431,1766579440277,-500.0,0.00015395,2]
[399637433,1766579440287,-162.380719,0.00015395,2]
[399637435,1766579440296,-500.0,0.00015395,2]
[399637437,1766579440306,-153.82745935,0.00015395,2]
[399637439,1766579440315,-500.0,0.00015395,2]
[399637441,1766579440325,-500.0,0.00015395,2]
[399637443,1766579440334,-500.0,0.00015395,2]
[399637445,1766579440344,-500.0,0.00015395,2]
[399637446,1766579440354,-500.0,0.00015395,2]
[399637447,1766579440366,-500.0,0.00015395,2]
[399637448,1766579440375,-500.0,0.00015395,2]
[399637450,1766579440385,-543.0,0.00015395,2]
[399637452,1766579440395,-500.0,0.00015395,2]
[399637454,1766579440404,-500.0,0.00015395,2]
[399637456,1766579440414,-500.0,0.00015395,2]
[399637458,1766579440424,-500.0,0.00015395,2]
[399637459,1766579440434,-500.0,0.00015395,2]
[399637461,1766579440444,-500.0,0.00015395,2]
[399637463,1766579440453,-500.0,0.00015395,2]
[399637464,1766579440463,-250.0,0.00015395,2]
[399637465,1766579440473,-500.0,0.00015395,2]
[399637466,1766579440483,-500.0,0.00015395,2]
[399637467,1766579440492,-500.0,0.00015395,2]
[399637468,1766579440502,-250.0,0.00015395,2]
[399637469,1766579440511,-500.0,0.00015395,2]
[399637470,1766579440521,-500.0,0.00015395,2]
[399637471,1766579440531,-500.0,0.00015395,2]
[399637472,1766579440541,-250.0,0.00015395,2]
[399637473,1766579440550,-500.0,0.00015395,2]
[399637474,1766579440561,-500.0,0.00015395,2]
[399637475,1766579440571,-250.0,0.00015395,2]
[399637476,1766579440581,-500.0,0.00015395,2]
[399637477,1766579440592,-500.0,0.00015395,2]
[399637478,1766579440602,-250.0,0.00015395,2]
[399637479,1766579440611,-500.0,0.00015395,2]
[399637480,1766579440621,-259.02685211,0.00015395,2]
[399637481,1766579440631,-250.0,0.00015395,2]
[399637482,1766579440640,-500.0,0.00015395,2]
[399637483,1766579440651,-500.0,0.00015395,2]
[399637484,1766579440660,-261.58626416,0.00015395,2]
[399637486,1766579440670,-500.0,0.00015395,2]
[399637488,1766579440680,-500.0,0.00015395,2]
[399637489,1766579440689,-500.0,0.00015395,2]
[399637490,1766579440699,-500.0,0.00015395,2]
[399637491,1766579440708,-500.0,0.00015395,2]
[399637492,1766579440718,-500.0,0.00015395,2]
[399637493,1766579440727,-500.0,0.00015395,2]
[399637494,1766579440737,-500.0,0.00015395,2]
[399637495,1766579440748,-500.0,0.00015395,2]
[399637496,1766579440758,-500.0,0.00015395,2]
[399637497,1766579440767,-500.0,0.00015395,2]
[399637498,1766579440777,-500.0,0.00015395,2]
[399637499,1766579440786,-261.6071653,0.00015395,2]
[399637500,1766579440796,-620.0,0.00015395,2]
[399637502,1766579440806,-200.0,0.00015395,2]
[399637504,1766579440816,-207.4,0.00015395,2]
[399637505,1766579440826,-215.0738,0.00015395,2]
[399637507,1766579440836,-223.0315306,0.00015395,2]
[399637509,1766579440845,-231.28369723,0.00015395,2]
[399637510,1766579440855,-239.84119403,0.00015395,2]
[399637511,1766579440865,-248.71531821,0.00015395,2]
[399637512,1766579440875,-257.91778498,0.00015395,2]
[399637513,1766579440885,-267.46074303,0.00015395,2]
[399637514,1766579440894,-277.35679052,0.00015395,2]
[399637515,1766579440904,-506.05021686,0.000154,2]
[399637516,1766579440914,-513.0,0.00015401,5]
[399637517,1766579440924,-150.0,0.00015401,2]
[399637518,1766579440934,-20943.70623327,0.00015407,2]
[399637519,1766579440943,-522.21768034,0.00015428,5]
[399637520,1766579440954,-2267.36,0.00015447,2]
[399637521,1766579440963,-150.0,0.00015476,2]
[399637522,1766579440973,-166.66,0.00015503,2]
[399637523,1766579440983,-150.0,0.00015514,2]
[399637524,1766579440993,-14151.4,0.00015516,2]
[399637525,1766579441003,-851.22588331,0.00015529,2]
[399637526,1766579441014,-150.0,0.0001553,2]
[399637527,1766579441024,-150.0,0.0001553,2]
[399637528,1766579441035,-150.0,0.0001553,2]
[399637529,1766579441045,-150.0,0.0001553,2]
[399637530,1766579441055,-500.0,0.00015534,2]
[399637531,1766579441065,-16820.93155061,0.00015549,2]
[399637532,1766579441076,-16707.49002494,0.00015556,2]
[399637533,1766579441086,-150.0,0.00015571,2]
[399637534,1766579441096,-281.26524805,0.00015594,2]
[399637535,1766579441105,-20943.70623327,0.0001562,2]
[399637536,1766579441115,-150.0,0.00015627,2]
[399637537,1766579441125,-150.0,0.00015665,2]
[399637538,1766579441134,-500.0,0.0001572,2]
[399637539,1766579441144,-500.0,0.0001572,2]
[399637540,1766579441155,-500.0,0.0001572,2]
[399637541,1766579441165,-1000.0,0.00015721,2]
[399637542,1766579441176,-1000.0,0.00015721,2]
[399637543,1766579441186,-1000.0,0.00015721,2]
[399637544,1766579441196,-1000.0,0.00015721,2]
[399637545,1766579441206,-1000.0,0.00015721,2]
[399637546,1766579441216,-535.67909762,0.00015721,2]
[399637547,1766579441226,-1000.0,0.00015721,2]
[399637548,1766579441236,-1000.0,0.00015721,2]
[399637549,1766579441246,-1000.0,0.00015721,2]
[399637550,1766579441259,-1001.56481773,0.00015721,2]
[399637551,1766579441269,-1000.0,0.00015721,2]
[399637552,1766579441279,-1000.0,0.00015721,2]
[399637553,1766579441294,-1000.0,0.00015721,2]
[399637554,1766579441303,-631.6683013,0.00015721,2]
[399637555,1766579441313,-1000.0,0.00015721,2]
[399637556,1766579441325,-366.77928753,0.00015721,2]
[399637557,1766579441334,-1000.0,0.00015721,2]
[399637558,1766579441344,-1000.0,0.00015721,2]
[399637559,1766579441354,-1000.0,0.00015721,2]
[399637560,1766579441364,-1000.0,0.00015721,2]
[399637561,1766579441373,-1000.0,0.00015721,2]
[399637562,1766579441383,-484.46296628,0.00015721,2]
[399637563,1766579441392,-1000.0,0.00015721,2]
[399637564,1766579441402,-1000.0,0.00015721,2]
[399637565,1766579441412,-937.29781211,0.00015721,2]
[399637566,1766579441421,-1000.0,0.00015721,2]
[399637567,1766579441431,-1000.0,0.00015721,2]
[399637568,1766579441441,-2267.36,0.00015721,2]
[399637569,1766579441451,-150.0,0.00015741,2]
[399637570,1766579441461,-151.0,0.00015741,2]
[399637571,1766579441472,-151.0,0.00015752,2]
[399637572,1766579441482,-150.0,0.00015773,2]
[399637573,1766579441492,-150.0,0.00015773,2]
[399637574,1766579441501,-150.0,0.00015773,2]
[399637575,1766579441510,-150.0,0.00015773,2]
[399637576,1766579441520,-16820.93155061,0.00015774,2]
[399637577,1766579441529,-851.22588331,0.00015803,2]
[399637578,1766579441541,-2229.87975614,0.00015807,2]
[399637579,1766579441550,-300.0,0.00015829,2]
[399637580,1766579441559,-20943.70623327,0.00015833,2]
[399637581,1766579441569,-150.0,0.00015854,2]
[399637582,1766579441579,-150.0,0.00015854,2]
[399637583,1766579441588,-150.0,0.00015854,2]
[399637584,1766579441599,-150.0,0.00015854,2]
[399637585,1766579441609,-150.0,0.00015854,2]
[399637586,1766579441619,-150.0,0.00015854,2]
[399637587,1766579441629,-1000.0,0.00015861,2]
[399637588,1766579441639,-1000.0,0.00015861,2]
[399637589,1766579441649,-1000.0,0.00015861,2]
[399637590,1766579441659,-717.647,0.00015861,2]
[399637591,1766579441669,-1000.0,0.00015861,2]
[399637592,1766579441679,-935.246,0.00015861,2]
[399637593,1766579441688,-1000.0,0.00015861,2]
[399637594,1766579441698,-1000.0,0.00015861,2]
[399637595,1766579441708,-4652.0,0.00015885,2]
[399637596,1766579441719,-150.0,0.00015967,2]
[399637597,1766579441729,-166.66,0.00015983,2]
[399637598,1766579441739,-4652.0,0.00015992,2]
[399637599,1766579441749,-4532.0,0.00015993,2]
[399637600,1766579441759,-2267.36,0.00015995,2]
[399637601,1766579441769,-16820.93155061,0.00015999,2]
[399637602,1766579441779,-23728.3415903,0.00016,2]
[399637603,1766579441789,-441.08570001,0.00016,2]
[399637604,1766579441799,-50729.22834233,0.00016,2]
[399637605,1766579441809,-41397.36173509,0.00016,4]
[399637606,1766579441818,-1272.1451431,0.00016001,2]
[399637607,1766579441828,-153.8820923,0.00016001,2]
[399637608,1766579441838,-4532.0,0.00016009,2]
[399637609,1766579441848,-150.0,0.00016016,2]
[399637610,1766579441857,-150.0,0.00016016,2]
[399637611,1766579441867,-150.0,0.00016016,2]
[399637612,1766579441876,-150.0,0.00016016,2]
[399637613,1766579441887,-278.93034548,0.00016021,2]
[399637614,1766579441896,-150.0,0.00016043,2]
[399637615,1766579441905,-20943.70623327,0.00016047,2]
[399637616,1766579441914,-600.0,0.00016075,2]
[399637617,1766579441923,-300.0,0.00016075,2]
[399637618,1766579441933,-250.0,0.00016075,2]
[399637619,1766579441943,-851.22588331,0.00016077,2]
[399637620,1766579441953,-150.0,0.0001608,2]
[399637621,1766579441963,-255.0,0.00016093,2]
[399637622,1766579441973,-150.0,0.00016137,2]
[399637623,1766579441982,-300.0,0.00016153,2]
[399637624,1766579441992,-365.97370761,0.00016153,2]
[399637625,1766579442002,-600.0,0.00016153,2]
[399637626,1766579442012,-4532.0,0.00016154,2]
[399637627,1766579442023,-150.0,0.00016194,2]
[399637628,1766579442033,-100174.80110317,0.000162,5]
[399637629,1766579442364,-16820.93155061,0.00016224,2]
[399637630,1766579442375,-150.0,0.00016231,2]
[399637631,1766579442386,-420.0,0.00016257,2]
[399637632,1766579442396,-150.0,0.00016258,2]
[399637633,1766579442406,-150.0,0.00016258,2]
[399637634,1766579442416,-150.0,0.00016258,2]
[399637635,1766579442426,-150.0,0.00016258,2]
[399637636,1766579442436,-20943.70623327,0.0001626,2]